bitfinex/quotes_ETHUSD_20241003
["timestamp","ask_amount","ask_price","bid_price","bid_amount"]
[1727979328211,2.0,2350.1,2349.8,4.25559]
[1727979328477,2.0,2350.1,2349.9,0.08213485]
[1727979332696,2.0,2350.1,2349.9,4.37366518]
[1727979333589,2.0,2350.1,2349.9,0.11824518]
[1727979334194,2.0,2350.1,2349.9,4.37371518]
[1727979334360,2.0,2350.1,2349.9,0.11824518]
[1727979335373,4.25531,2350.0,2349.9,0.11824518]
[1727979335572,8.06621,2350.0,2349.9,0.11824518]
[1727979335865,0.7554,2349.6,2349.3,4.25657]
[1727979336067,0.7554,2349.6,2349.4,4.37094874]
[1727979336374,0.7554,2349.6,2349.4,0.11464874]
[1727979336594,4.25622,2349.5,2349.4,0.11464874]
[1727979337102,4.25622,2349.5,2349.4,0.1148111]
[1727979337265,5.01144,2349.6,2349.2,4.25672]
[1727979337464,5.01144,2349.6,2349.3,0.11485258]
[1727979337801,4.25623,2349.5,2349.3,0.11485258]
[1727979338098,5.182997,2349.5,2349.1,4.25685]
[1727979338308,5.182997,2349.5,2349.4,0.11492649]
[1727979338309,0.926767,2349.5,2349.4,0.11492649]
[1727979338528,0.926767,2349.5,2349.1,8.51367]
[1727979338671,4.25625,2349.5,2349.4,0.11492649]
[1727979338877,4.25625,2349.5,2348.9,4.80724]
[1727979339200,4.25654,2349.4,2349.0,4.25711]
[1727979339911,4.25642,2349.4,2349.0,4.25711]
[1727979340067,4.25642,2349.4,2349.0,8.51422]
[1727979340273,8.51297,2349.4,2348.9,4.80723]
[1727979340480,5.183257,2349.4,2348.9,4.25723]
[1727979340703,5.05147,2349.3,2348.9,4.25723]
[1727979340907,0.7948,2349.3,2349.0,4.2571]
[1727979343731,5.05139,2349.3,2348.9,4.25728]
[1727979344272,5.05139,2349.3,2348.9,8.51451]
[1727979344473,5.05139,2349.3,2348.9,4.25723]
[1727979345179,5.982168,2349.3,2348.9,4.25723]
[1727979345586,5.982168,2349.3,2348.9,8.51446]
[1727979345838,7.25683,2349.2,2348.8,4.25743]
[1727979346021,7.25683,2349.2,2348.6,5.07517]
[1727979346022,4.25715,2349.0,2348.6,5.07517]
[1727979346336,5.03985,2349.0,2348.5,4.25795]
[1727979346633,5.03985,2349.0,2348.7,0.10817954]
[1727979346797,5.03985,2349.0,2348.6,4.25777]
[1727979346798,4.25749,2348.9,2348.6,0.10474558]
[1727979347002,4.25749,2348.9,2348.5,4.25791]
[1727979347534,1.586685,2349.0,2348.5,4.25802]
[1727979347535,8.843885,2349.0,2348.5,4.25802]
[1727979347744,4.25734,2348.9,2348.5,4.25802]
[1727979348708,8.843885,2349.0,2348.5,4.25793]
[1727979349039,8.843885,2349.0,2348.6,4.25775]
[1727979349211,8.0399,2349.0,2348.6,4.25775]
[1727979349610,3.8057,2349.2,2348.7,5.04223]
[1727979349844,8.06255,2349.2,2348.8,4.25739]
[1727979350014,3.8057,2349.2,2348.8,4.25739]
[1727979350340,4.25644,2349.4,2348.8,4.25739]
[1727979350341,4.25668,2349.3,2348.9,0.504199]
[1727979350645,4.25668,2349.3,2348.8,4.34246223]
[1727979350810,4.25668,2349.3,2348.9,4.25728]
[1727979351309,5.06217,2349.4,2349.0,4.2571]
[1727979351516,4.25662,2349.3,2348.9,4.25729]
[1727979352101,7.2568,2349.2,2348.8,4.80748]
[1727979353039,3.0,2349.2,2348.8,4.80748]
[1727979353247,7.25677,2349.2,2348.8,9.624068]
[1727979353481,3.0,2349.2,2348.9,4.25727]
[1727979354152,3.0,2349.2,2348.8,5.366588]
[1727979354348,3.0,2349.2,2348.8,5.366568]
[1727979354677,3.0,2349.2,2348.9,4.25723]
[1727979354882,7.25678,2349.2,2348.8,5.366668]
[1727979355244,3.0,2349.2,2348.9,4.25729]
[1727979355473,7.25677,2349.2,2348.8,5.366668]
[1727979356348,4.25661,2349.3,2348.9,4.8723968]
[1727979356684,8.51335,2349.3,2348.9,4.8723968]
[1727979356891,0.8057,2349.4,2348.9,0.6151268]
[1727979357181,0.7928,2349.6,2349.3,4.25657]
[1727979357379,7.31,2350.0,2349.3,4.25657]
[1727979357380,12.3333,2350.0,2349.6,4.25603]
[1727979357582,4.25568,2349.8,2349.5,0.7804]
[1727979357759,4.25558,2349.9,2349.5,0.7804]
[1727979357962,8.51118,2349.9,2349.5,0.7804]
[1727979358759,4.25584,2349.8,2349.4,0.425657]
[1727979358949,4.25587,2349.7,2349.4,0.425657]
[1727979359588,4.25555,2349.9,2349.4,0.425657]
[1727979359776,4.25572,2349.8,2349.4,4.681967]
[1727979360174,4.25586,2349.7,2349.4,4.681967]
[1727979360352,4.25586,2349.7,2349.4,0.425657]
[1727979360562,4.25586,2349.7,2349.3,5.02196]
[1727979360977,4.2558,2349.8,2349.4,4.2564]
[1727979361166,4.2558,2349.8,2349.4,4.36074548]
[1727979361562,4.2558,2349.8,2349.4,4.42652947]
[1727979361922,4.2558,2349.8,2349.4,4.36074548]
[1727979362269,4.25561,2349.9,2349.5,4.2562]
[1727979362470,2.0,2350.1,2349.6,4.95036667]
[1727979362716,2.0,2350.1,2350.0,5.02071]
[1727979363062,2.0,2350.1,2350.0,9.7555108]
[1727979364664,2.0,2350.1,2350.0,10.1822108]
[1727979364868,2.0,2350.1,2350.0,14.62596588]
[1727979368661,16.54235,2351.7,2351.2,4.25312]
[1727979368952,0.7826,2351.8,2351.5,4.25259]
[1727979369103,0.1452,2351.6,2351.4,0.55]
[1727979369602,0.1452,2351.6,2351.5,0.10270471]
[1727979370016,0.1452,2351.6,2351.1,4.25317]
[1727979370217,0.1452,2351.6,2351.5,0.1024921]
[1727979370540,0.1452,2351.6,2351.5,0.10168793]
[1727979371253,0.1452,2351.6,2351.5,0.85808793]
[1727979371935,0.1452,2351.6,2351.5,0.10168793]
[1727979372370,0.1452,2351.6,2351.5,5.33972572]
[1727979372738,0.1452,2351.6,2351.5,1.08712572]
[1727979373050,0.1452,2351.6,2351.5,0.65168793]
[1727979373249,0.1452,2351.6,2351.5,4.90428793]
[1727979373556,0.1452,2351.6,2351.5,0.72236031]
[1727979374983,0.1452,2351.6,2351.5,4.97496031]
[1727979375879,0.1452,2351.6,2351.5,5.80816031]
[1727979376043,0.1452,2351.6,2351.5,7.57834138]
[1727979378103,0.1452,2351.6,2351.5,10.57834138]
[1727979381390,0.1452,2351.6,2351.5,7.15164138]
[1727979381888,0.1452,2351.6,2351.5,6.60164138]
[1727979382049,0.1452,2351.6,2351.5,6.68394635]
[1727979382445,0.1452,2351.6,2351.5,9.68394635]
[1727979382689,0.1452,2351.6,2351.5,9.60164138]
[1727979383297,0.1452,2351.6,2351.5,10.15164138]
[1727979383532,0.1452,2351.6,2351.5,10.57834138]
[1727979386141,0.1452,2351.6,2351.5,7.57834138]
[1727979386344,0.1452,2351.6,2351.5,7.15164138]
[1727979391920,0.1452,2351.6,2351.5,7.57834138]
[1727979392671,0.1452,2351.6,2351.5,7.62991709]
[1727979392963,0.1452,2351.6,2351.5,7.57834138]
[1727979393186,0.1452,2351.6,2351.5,7.15164138]
[1727979395178,0.1452,2351.6,2351.5,7.54724725]
[1727979395329,0.1452,2351.6,2351.5,7.97394725]
[1727979397181,0.1452,2351.6,2351.5,8.60692101]
[1727979397593,0.1452,2351.6,2351.5,10.97394725]
[1727979397752,0.8225,2352.5,2352.4,4.25097]
[1727979398150,0.8028,2353.0,2352.4,4.7312079]
[1727979398349,0.8028,2353.0,2352.8,4.25025]
[1727979398757,0.8028,2353.0,2352.9,0.10029691]
[1727979399098,0.8028,2353.0,2352.6,4.25044]
[1727979399394,5.05269,2353.0,2352.6,4.25044]
[1727979399567,5.05269,2353.0,2352.7,0.10037964]
[1727979400568,0.7582,2352.8,2352.7,0.10037964]
[1727979400769,4.25081,2352.5,2352.1,11.7115]
[1727979400990,0.7818,2352.5,2352.2,4.25132]
[1727979401994,0.7818,2352.5,2352.3,4.25107]
[1727979402605,0.7818,2352.5,2352.4,4.25097]
[1727979403360,0.8185,2352.8,2352.7,4.25043]
[1727979403578,0.8185,2352.8,2352.6,4.25059]
[1727979403787,0.8185,2352.8,2352.4,5.50915142]
[1727979404103,0.8185,2352.8,2352.4,4.25087]
[1727979404104,5.06882,2352.8,2352.4,4.25087]
[1727979404601,0.8185,2352.8,2352.5,4.25074]
[1727979404803,0.831,2352.6,2352.2,0.55]
[1727979404986,0.831,2352.6,2352.3,4.25108]
[1727979405362,0.831,2352.6,2352.4,4.2509]
[1727979405615,0.831,2352.6,2352.4,0.48009]
[1727979405914,0.831,2352.6,2352.5,4.25079]
[1727979406225,0.831,2352.6,2352.5,0.10018203]
[1727979407205,0.831,2352.6,2352.5,4.35097203]
[1727979407374,0.8077,2353.0,2352.6,4.25044]
[1727979407575,0.8077,2353.0,2352.5,4.90097203]
[1727979407576,4.25014,2352.9,2352.5,4.90097203]
[1727979407789,4.25014,2352.9,2352.7,0.10009929]
[1727979407990,4.25014,2352.9,2352.5,9.13294372]
[1727979407991,4.25014,2352.9,2352.5,9.05148]
[1727979408197,5.05768,2353.0,2352.8,0.10005793]
[1727979408366,5.05768,2353.0,2352.6,8.50099]
[1727979408701,5.05768,2353.0,2352.9,0.10001657]
[1727979408702,0.8077,2353.0,2352.9,0.10001657]
[1727979409206,0.8077,2353.0,2352.7,4.2504]
[1727979409368,0.8077,2353.0,2352.9,0.09989767]
[1727979409705,5.05759,2353.0,2352.7,0.55]
[1727979409935,0.8077,2353.0,2352.9,0.09989767]
[1727979410533,5.05759,2353.0,2352.9,0.09989767]
[1727979411132,5.05759,2353.0,2352.7,0.55]
[1727979411344,5.05759,2353.0,2352.5,5.69222742]
[1727979411345,5.05759,2353.0,2352.9,0.09989767]
[1727979411636,5.05759,2353.0,2352.8,0.09993903]
[1727979411637,5.00547,2352.9,2352.8,0.09993903]
[1727979411817,0.7554,2352.6,2352.3,4.25108]
[1727979412193,0.7554,2352.6,2352.3,4.25115]
[1727979412826,0.7554,2352.6,2352.4,4.25097]
[1727979413213,0.7554,2352.6,2352.3,4.25115]
[1727979413596,0.7554,2352.6,2352.3,2.13759527]
[1727979413799,0.7554,2352.6,2352.3,6.38863527]
[1727979413994,0.7554,2352.6,2352.4,4.25091]
[1727979414536,0.7554,2352.6,2352.5,4.25079]
[1727979414836,0.7554,2352.6,2352.4,4.2509]
[1727979415401,0.7554,2352.6,2352.4,8.50177]
[1727979415597,0.7554,2352.6,2352.4,4.25087]
[1727979415798,0.7554,2352.6,2352.3,2.13759527]
[1727979415996,0.7554,2352.6,2352.4,4.25088]
[1727979416399,0.7554,2352.6,2352.3,4.25106]
[1727979417138,0.7554,2352.6,2352.3,8.50212]
[1727979417354,0.7554,2352.6,2352.4,4.2509]
[1727979417496,0.7554,2352.6,2352.5,4.25079]
[1727979419441,0.7554,2352.6,2352.4,4.2509]
[1727979419649,0.7554,2352.6,2352.4,5.13899042]
[1727979420638,0.7554,2352.6,2352.5,4.25079]
[1727979420997,0.7961,2352.9,2352.5,8.33149415]
[1727979421354,5.04619,2352.9,2352.5,0.09685198]
[1727979421517,0.8234,2352.6,2352.5,0.09685198]
[1727979421697,0.8234,2352.6,2352.4,4.25096]
[1727979422043,0.8234,2352.6,2352.5,0.0965895]
[1727979422413,0.8234,2352.6,2352.5,4.3473795]
[1727979422613,0.8234,2352.6,2352.5,0.0965895]
[1727979423246,0.8234,2352.6,2352.3,4.25106]
[1727979423247,0.8234,2352.6,2352.4,0.55]
[1727979423557,0.8234,2352.6,2352.5,0.09663623]
[1727979423906,0.8234,2352.6,2352.5,4.34742623]
[1727979424228,0.8234,2352.6,2352.5,0.09663623]
[1727979424405,0.8234,2352.6,2352.3,4.25115]
[1727979424600,0.8234,2352.6,2352.5,0.09663623]
[1727979424854,0.8234,2352.6,2352.4,4.3476376]
[1727979425049,0.8234,2352.6,2352.5,0.09663623]
[1727979425858,0.8234,2352.6,2352.5,0.64663623]
[1727979426217,0.8234,2352.6,2352.5,0.09663623]
[1727979426421,0.8234,2352.6,2352.3,4.25111]
[1727979426615,5.07401,2352.6,2352.5,0.09663623]
[1727979427029,4.25099,2352.4,2352.0,4.25162]
[1727979427238,4.25166,2352.1,2351.7,4.2521]
[1727979427420,5.05336,2352.3,2352.0,4.25161]
[1727979427621,5.05336,2352.3,2351.9,4.25184]
[1727979428470,5.05344,2352.3,2351.9,4.25184]
[1727979428709,0.8022,2352.3,2352.0,4.25168]
[1727979428919,0.8022,2352.3,2352.0,5.102027]
[1727979429217,4.25076,2352.6,2352.1,8.5028]
[1727979429218,3.8186,2352.5,2352.1,8.5028]
[1727979429415,3.8186,2352.5,2352.2,0.55]
[1727979429714,8.0694,2352.5,2352.2,0.55]
[1727979432585,0.8186,2352.5,2352.2,4.80119]
[1727979432780,0.8186,2352.5,2352.2,1.030119]
[1727979432986,5.06945,2352.5,2352.1,4.80151]
[1727979433599,4.25098,2352.4,2352.0,4.25155]
[1727979434390,5.06945,2352.5,2352.0,4.25155]
[1727979434609,4.25099,2352.4,2352.0,4.25168]
[1727979434813,4.25099,2352.4,2352.0,8.5033]
[1727979435320,5.06945,2352.5,2352.0,4.25162]
[1727979435727,9.32038,2352.5,2352.1,4.2515]
[1727979436084,5.06945,2352.5,2352.1,4.2515]
[1727979436283,7.25061,2352.7,2352.2,0.09714262]
[1727979436284,8.00905,2352.3,2352.2,0.09714262]
[1727979436713,4.2516,2352.1,2351.7,4.25221]
[1727979437124,4.25171,2352.0,2351.6,4.2524]
[1727979437294,0.7579,2351.9,2351.6,8.50468]
[1727979437493,0.7579,2351.9,2351.6,4.25228]
[1727979437791,0.7652,2351.8,2351.0,13.85668857]
[1727979437992,0.7652,2351.4,2351.1,4.2532]
[1727979438299,0.7652,2351.4,2351.2,4.25314]
[1727979439239,0.7652,2351.4,2351.2,4.25306]
[1727979439591,0.7652,2351.4,2351.2,8.50613]
[1727979439784,0.7652,2351.4,2351.0,5.06394]
[1727979439996,0.7652,2351.4,2350.8,8.50751]
[1727979440293,0.7958,2351.2,2350.9,4.25357]
[1727979444036,0.7958,2351.2,2350.8,8.50752]
[1727979444459,4.25363,2351.0,2350.5,7.46]
[1727979444744,0.8051,2350.6,2350.3,4.25473]
[1727979445098,5.05944,2350.6,2350.2,4.25479]
[1727979445299,4.25469,2350.4,2350.0,4.25524]
[1727979445498,0.8051,2350.4,2350.2,4.25483]
[1727979445703,0.7549,2350.6,2350.3,4.25477]
[1727979446312,0.7549,2350.6,2350.2,4.25483]
[1727979447118,0.7549,2350.6,2350.2,8.50966]
[1727979447305,0.7549,2350.6,2350.3,4.25472]
[1727979447505,0.7549,2350.6,2350.2,5.3412737]
[1727979448001,0.7549,2350.6,2350.3,4.80471]
[1727979449344,0.7549,2350.6,2350.4,4.25458]
[1727979450110,4.25369,2350.9,2350.4,4.25458]
[1727979450111,0.7586,2350.9,2350.5,4.2543]
[1727979450361,0.7586,2350.9,2350.6,0.50245]
[1727979450715,0.7586,2350.9,2350.5,4.2543]
[1727979450909,0.7586,2350.9,2350.5,4.33937944]
[1727979451337,0.7586,2350.9,2350.6,0.07863548]
[1727979451936,5.01231,2350.9,2350.6,0.07863548]
[1727979452566,5.01231,2350.9,2350.4,4.25458]
[1727979452567,5.01231,2350.9,2350.5,0.55]
[1727979452830,5.01231,2350.9,2350.6,0.07863548]
[1727979454970,5.01231,2350.9,2350.5,4.2543]
[1727979455259,5.01231,2350.9,2350.4,4.25448]
[1727979455260,4.25405,2350.7,2350.6,0.07863548]
[1727979455466,4.25405,2350.7,2350.3,4.80476]
[1727979455665,4.25405,2350.7,2350.6,0.07863548]
[1727979456146,4.25405,2350.7,2350.3,4.80476]
[1727979456351,4.25405,2350.7,2350.6,0.07863548]
[1727979456576,4.25405,2350.7,2350.3,4.80476]
[1727979456752,4.25387,2350.8,2350.6,0.07863548]
[1727979456753,8.50784,2350.8,2350.6,0.07863548]
[1727979456949,4.25405,2350.7,2350.3,0.55]
[1727979457157,0.7656,2350.5,2350.2,4.25488]
[1727979457363,0.7656,2350.5,2350.0,6.624187]
[1727979457563,0.7656,2350.5,2350.0,5.852377]
[1727979457564,4.2546,2350.4,2350.0,5.852377]
[1727979457745,4.2546,2350.4,2350.0,4.2553]
[1727979457949,0.7656,2350.5,2350.2,4.25482]
[1727979458132,3.0,2350.7,2350.4,4.25455]
[1727979458366,7.25406,2350.7,2350.3,4.25459]
[1727979458746,3.0,2350.7,2350.3,8.50925]
[1727979458951,3.7656,2350.8,2350.5,4.25433]
[1727979461586,4.25408,2350.7,2350.4,0.55]
[1727979462685,4.25435,2350.6,2350.2,4.25493]
[1727979463191,4.25435,2350.6,2350.2,4.25488]
[1727979463793,0.7826,2350.4,2350.1,4.25509]
[1727979464984,0.7826,2350.4,2350.1,5.59137442]
[1727979465167,0.7826,2350.4,2350.2,4.25492]
[1727979465368,0.7826,2350.4,2350.1,5.59139442]
[1727979465568,0.7826,2350.4,2350.1,4.25511]
[1727979465896,0.7826,2350.4,2349.9,8.33610415]
[1727979465897,4.25487,2350.3,2349.9,4.25547]
[1727979466191,0.7826,2350.4,2350.1,4.25504]
[1727979466418,0.7826,2350.4,2350.2,0.07624396]
[1727979466981,0.7826,2350.4,2350.1,4.2551]
[1727979467213,0.7826,2350.4,2350.2,0.07624396]
[1727979468392,5.03719,2350.4,2350.2,0.07624396]
[1727979468708,5.03723,2350.4,2350.0,4.2553]
[1727979468916,5.03723,2350.4,2350.3,0.07620251]
[1727979469101,5.03723,2350.4,2350.0,4.2553]
[1727979469300,5.03723,2350.4,2350.3,0.07620251]
[1727979469489,4.2548,2350.3,2349.9,4.80545]
[1727979469986,5.03723,2350.4,2350.0,4.25529]
[1727979470386,0.7826,2350.4,2350.0,5.989934]
[1727979470590,0.7826,2350.4,2350.1,4.25506]
[1727979472537,0.7826,2350.4,2350.1,8.51012]
[1727979474972,5.04047,2350.6,2350.2,4.25485]
[1727979475181,0.7862,2350.8,2350.4,4.08070415]
[1727979475326,0.7862,2350.8,2350.6,4.25422]
[1727979476128,3.0,2350.9,2350.6,4.25414]
[1727979476529,3.0,2350.9,2350.5,5.53641965]
[1727979476838,7.25375,2350.9,2350.5,5.53641965]
[1727979477044,7.25369,2350.9,2350.5,5.53641965]
[1727979477978,4.25431,2350.6,2350.1,8.243]
[1727979478125,8.50859,2350.6,2350.2,4.25494]
[1727979478324,4.25425,2350.6,2350.2,4.25494]
[1727979479572,0.805,2350.8,2350.1,12.49799]
[1727979479764,4.25431,2350.6,2350.2,4.80489]
[1727979480157,4.25442,2350.5,2350.2,0.55]
[1727979480395,4.25431,2350.6,2349.8,4.25565]
[1727979480396,0.7886,2350.3,2349.9,0.829]
[1727979480692,5.0434,2350.3,2349.9,0.829]
[1727979480853,4.25497,2350.2,2349.7,0.7812]
[1727979481056,1.718409,2350.3,2349.5,5.0374]
[1727979481437,4.25423,2350.6,2349.8,0.07643097]
[1727979481438,5.03003,2349.9,2349.8,0.07643097]
[1727979481621,4.25613,2349.6,2349.2,4.25674]
[1727979481986,4.13613,2349.6,2349.2,8.51339]
[1727979482317,4.13613,2349.6,2348.9,2.11691857]
[1727979482318,0.805,2349.4,2349.1,4.25693]
[1727979482941,0.805,2349.4,2349.2,4.25669]
[1727979483242,0.805,2349.4,2349.1,4.25693]
[1727979484197,0.805,2349.4,2349.1,5.186678]
[1727979484402,0.805,2349.4,2349.2,4.25672]
[1727979484729,4.25614,2349.6,2349.2,4.25672]
[1727979485092,8.03518,2349.7,2349.3,4.25647]
[1727979485695,4.25611,2349.6,2349.2,4.25674]
[1727979485941,4.25623,2349.5,2348.9,5.04134]
[1727979486237,4.25648,2349.4,2349.0,4.80711]
[1727979486439,1.229129,2349.6,2348.8,11.71741]
[1727979486440,0.7682,2349.2,2348.8,11.71741]
[1727979486625,5.02506,2349.2,2348.8,7.46]
[1727979486999,4.25722,2349.0,2348.8,7.46]
[1727979487201,4.25703,2349.1,2348.7,4.25764]
[1727979487748,4.25703,2349.1,2348.4,0.4267]
[1727979487749,4.25737,2348.9,2348.4,4.2582]
[1727979488049,4.25737,2348.9,2348.4,8.51633]
[1727979488197,0.502489,2349.1,2348.5,4.25791]
[1727979488515,3.502489,2349.1,2348.8,4.25747]
[1727979488714,0.7682,2349.2,2348.8,4.25733]
[1727979488901,0.7682,2349.2,2348.8,4.25743]
[1727979489109,0.7682,2349.2,2349.0,4.2571]
[1727979489333,0.7682,2349.2,2348.9,4.2572]
[1727979489647,0.7682,2349.2,2348.9,8.5144]
[1727979489801,0.7682,2349.2,2348.9,4.2572]
[1727979490002,0.7682,2349.2,2349.0,4.25709]
[1727979490208,3.0,2349.4,2349.1,4.25683]
[1727979490417,3.0,2349.4,2349.0,4.25713]
[1727979490718,0.7763,2349.5,2349.1,4.25693]
[1727979491026,0.7763,2349.5,2349.2,4.25675]
[1727979491841,3.0,2349.6,2349.3,5.03929]
[1727979492000,4.25575,2349.8,2349.3,5.03929]
[1727979492961,4.25586,2349.7,2349.3,5.03929]
[1727979493365,4.25586,2349.7,2349.3,0.7828]
[1727979494019,4.25586,2349.7,2349.3,5.03937]
[1727979494218,4.25586,2349.7,2349.3,6.054111]
[1727979494420,4.2565,2349.4,2348.9,5.184961]
[1727979494620,8.51263,2349.5,2348.9,5.184861]
[1727979494856,4.25643,2349.4,2349.0,4.25705]
[1727979495442,0.7559,2349.6,2348.9,0.927651]
[1727979495627,5.05884,2349.2,2348.7,4.25751]
[1727979495967,0.802,2349.2,2348.8,5.505701]
[1727979496321,0.802,2349.2,2348.9,0.07053607]
[1727979496831,0.802,2349.2,2348.9,4.32783607]
[1727979497439,0.802,2349.2,2348.9,0.07053607]
[1727979497640,5.0588,2349.2,2348.9,0.07053607]
[1727979497827,5.990391,2349.2,2348.9,0.07053607]
[1727979498229,5.05885,2349.2,2348.9,0.07053607]
[1727979498570,0.802,2349.2,2348.9,4.32778607]
[1727979498728,0.7811,2349.5,2349.2,4.25676]
[1727979499058,4.2564,2349.4,2349.3,0.07053954]
[1727979499222,7.2564,2349.4,2348.9,4.25721]
[1727979499421,3.0,2349.4,2349.1,4.80682]
[1727979499726,3.0,2349.4,2349.2,0.07058102]
[1727979500063,4.25658,2349.3,2349.2,0.07058102]
[1727979500263,5.02331,2349.2,2348.8,4.25748]
[1727979500471,0.7665,2349.2,2348.8,4.25748]
[1727979500773,0.7665,2349.2,2348.9,4.2573]
[1727979502337,0.7741,2349.4,2349.1,4.25683]
[1727979504665,5.03058,2349.4,2349.0,8.51411]
[1727979505537,5.03058,2349.4,2348.9,4.25728]
[1727979505774,5.03054,2349.4,2349.0,4.25711]
[1727979505959,7.25668,2349.3,2348.8,9.33693]
[1727979506273,7.25668,2349.3,2348.9,4.25729]
[1727979507260,3.0,2349.3,2349.0,4.25711]
[1727979509993,3.0,2349.3,2348.9,4.80727]
[1727979510271,7.2567,2349.3,2348.9,4.80727]
[1727979511370,7.2567,2349.3,2349.0,0.06851448]
[1727979511977,3.0,2349.3,2349.0,4.32563448]
[1727979512140,4.25619,2349.6,2349.1,4.80691]
[1727979512463,7.25624,2349.5,2349.1,4.80691]
[1727979512784,7.25624,2349.5,2349.2,0.06843573]
[1727979513574,3.0,2349.5,2349.2,4.32519573]
[1727979513745,7.25595,2349.7,2349.3,5.16977257]
[1727979514073,7.25595,2349.7,2349.2,0.06843573]
[1727979514376,3.0,2349.5,2349.3,0.06836035]
[1727979515574,0.8127,2349.8,2349.3,4.32492035]
[1727979515725,0.8127,2349.8,2349.5,4.25621]
[1727979515926,5.06841,2349.8,2349.5,0.86660884]
[1727979516130,5.06841,2349.8,2349.6,0.06818931]
[1727979516360,5.06841,2349.8,2349.4,4.25639]
[1727979516574,5.06841,2349.8,2349.7,0.06814784]
[1727979517082,5.06841,2349.8,2349.4,4.25639]
[1727979517280,5.06841,2349.8,2349.4,5.52427755]
[1727979517422,5.06841,2349.8,2349.7,0.06814784]
[1727979517629,5.06841,2349.8,2349.0,4.25712]
[1727979517630,5.01373,2349.4,2349.0,4.25712]
[1727979517837,4.25666,2349.3,2348.9,0.7663]
[1727979518077,5.01373,2349.4,2348.9,0.7663]
[1727979518284,5.01373,2349.4,2349.0,0.502363]
[1727979518432,9.27028,2349.4,2349.0,0.502363]
[1727979518769,0.7573,2349.4,2349.1,0.55]
[1727979519646,0.7573,2349.4,2349.1,4.8069]
[1727979522477,0.7573,2349.4,2349.1,0.55]
[1727979522678,4.25558,2349.9,2349.5,4.25619]
[1727979522889,3.0,2349.8,2349.5,4.25619]
[1727979523260,3.0,2349.8,2349.2,0.8023]
[1727979523468,7.2558,2349.8,2349.4,4.25639]
[1727979523879,3.8257,2350.0,2349.5,4.25622]
[1727979524065,3.0,2349.8,2349.5,4.25622]
[1727979524387,3.0,2349.8,2349.4,4.25639]
[1727979524388,7.2558,2349.8,2349.4,4.25627]
[1727979525778,7.2558,2349.8,2349.4,4.25639]
[1727979526054,11.51159,2349.8,2349.4,4.25639]
[1727979526387,7.25579,2349.8,2349.5,0.06804862]
[1727979528459,3.0,2349.8,2349.5,0.06804862]
[1727979528782,4.25496,2350.2,2349.7,4.25586]
[1727979528783,0.7924,2350.2,2349.7,4.25586]
[1727979528955,0.7924,2350.2,2349.9,4.25543]
[1727979529361,4.1349775,2351.1,2350.0,4.32304128]
[1727979529362,0.7924,2350.4,2350.0,4.32304128]
[1727979529657,4.25449,2350.5,2350.1,4.25506]
[1727979529890,4.25449,2350.5,2350.1,0.55]
[1727979530102,4.25449,2350.5,2350.1,0.61779982]
[1727979530805,0.7924,2350.6,2350.3,4.25475]
[1727979530951,4.25405,2350.7,2350.3,4.25475]
[1727979531154,4.25405,2350.7,2350.1,9.92566137]
[1727979531367,4.25405,2350.7,2350.4,0.06767546]
[1727979531584,4.25405,2350.7,2350.1,5.7771274]
[1727979531789,4.25405,2350.7,2350.5,0.06763402]
[1727979531967,4.25405,2350.7,2350.1,5.7771274]
[1727979532165,4.25405,2350.7,2350.6,0.06759258]
[1727979532488,4.25405,2350.7,2350.2,4.25493]
[1727979532652,4.25405,2350.7,2350.6,0.06759258]
[1727979532653,8.50823,2350.7,2350.6,0.06759258]
[1727979532848,4.25405,2350.7,2350.2,4.3400193]
[1727979533207,4.25424,2350.6,2350.3,1.07943158]
[1727979534162,4.25405,2350.7,2350.3,5.33411158]
[1727979534379,8.04635,2350.8,2350.3,5.33411158]
[1727979534591,3.7924,2350.8,2350.4,4.25459]
[1727979534804,8.04637,2350.8,2350.4,5.07889]
[1727979534966,8.04637,2350.8,2350.5,0.68346618]
[1727979535165,3.7924,2350.8,2350.5,0.68346618]
[1727979535379,3.7924,2350.8,2350.5,4.93780618]
[1727979536261,8.0463,2350.8,2350.5,0.68346618]
[1727979538968,4.25422,2350.7,2350.5,0.06763402]
[1727979539156,4.25423,2350.6,2350.5,0.06763402]
[1727979539394,4.25423,2350.6,2350.1,5.07931]
[1727979539769,4.25422,2350.7,2350.2,4.3221723]
[1727979539770,4.25405,2350.7,2350.2,4.3221723]
[1727979540104,4.25405,2350.7,2350.3,4.76937723]
[1727979540259,4.25405,2350.7,2350.3,0.58192808]
[1727979540464,4.25405,2350.7,2350.3,0.06728085]
[1727979540806,4.25405,2350.7,2350.3,4.32202085]
[1727979541666,4.25405,2350.7,2350.3,0.06728085]
[1727979541667,4.25423,2350.6,2350.3,0.06728085]
[1727979542395,8.50822,2350.7,2350.3,4.32203085]
[1727979542596,4.25405,2350.7,2350.3,4.32203085]
[1727979543394,4.25424,2350.6,2350.3,0.06728085]
[1727979543696,4.25424,2350.6,2350.3,4.32205085]
[1727979544461,8.0463,2350.8,2350.3,4.32205085]
[1727979544462,4.25409,2350.7,2350.3,4.32205085]
[1727979544681,1.230039,2350.7,2350.3,0.06728085]
[1727979545008,5.06199,2350.4,2349.9,11.71543]
[1727979545309,4.25489,2350.3,2349.9,4.25543]
[1727979545694,0.8074,2350.4,2350.0,4.25515]
[1727979545895,0.8074,2350.4,2350.1,4.25506]
[1727979546526,3.0,2350.6,2350.1,4.91350415]
[1727979546707,7.25401,2350.8,2350.3,8.50932]
[1727979547009,7.25401,2350.8,2350.4,4.25442]